Workbook

Sheet 발주계획
B1: 울산광역시 공고 제2026 - 1304호
B2: 2026년도 3/4분기 발주계획(공사·용역·물품) 공고
B3: 「지방자치단체를 당사자로 하는 계약에 관한 법률」 제43조 및 같은 법 시행령 제124조에 따라 우리시 2026년도 3분기 발주계획을 다음과 같이 공고합니다. 2026. 7. 1. 울산광역시장
C4: 각 시트별 집계현황
C5: 총 | D5: =SUM(D6:D8) -> 97건 | E5: =E6+E7+E8 -> 10,769백만원
C6: 공사 | D6: =COUNTA(공사!A2:A72) -> 17건 | E6: =INT(SUM(공사!F:F)/1000000) -> 6,878백만원
C7: 용역 | D7: =COUNTA(용역!A2:A99) -> 63건 | E7: =INT(SUM(용역!G:G)/1000000) -> 3,401백만원
C8: 물품 | D8: =COUNTA(물품!A2:A117) -> 17건 | E8: =INT(SUM(물품!H:H)/1000000) -> 490백만원
B10: ※ 설계결과, 현지여건, 우리시 사정등에 의하여 사업의 분리 또는 사업비의 증감, 발주시기 등이 변경될 수 있습니다.

Sheet 공사
A1: 발주년도 | B1: 발주월 | C1: 공사명 | D1: 공종 | E1: 발주물량 또는 규모 | F1: 발주도급금액 (단위:원) | G1: 발주관급자재비 | H1: 발주기타금액 | I1: 발주합계금액 | J1: 금차도급금액 | K1: 부서명 | L1: 담당자 | M1: 연락처 | N1: 비고
A2: 2026 | B2: 7 | C2: 2026년 반구천 일원 역사문화탐방로 조성공사 | D2: 토목 | E2: 인도교 L=56m, 교목 및 관목 식재 등 | F2: 1,798,317,000 | G2: 358,659,000 | I2: =F2+G2 -> 2,156,976,000 | K2: 문화유산과 | L2: 손태환 | M2: 052-229-7502
A3: 2026 | B3: 7 | C3: 방어진수질개선사업소 최초침전지(13~20수로) 보수보강공사 | D3: 전문 | E3: 콘크리트단면복구 A=2400㎡ 등 | F3: 846,100,000 | G3: =237190000+119820000 -> 357,010,000 | H3: 14,800,000 | I3: =F3+G3+H3 -> 1,217,910,000 | K3: 하수관리과 | L3: 박상욱 | M3: 052-229-3295
A4: 2026 | B4: 7 | C4: 복성맨홀펌프장 시설개선공사 | D4: 전문 | E4: 오수압송관(D100) 신설 L=243.5m 등 | F4: 95,410,000 | G4: 31,880,000 | H4: 8,500,000 | I4: =F4+G4+H4 -> 135,790,000 | K4: 하수관리과 | L4: 박상욱 | M4: 052-229-3295
A5: 2026 | B5: 7 | C5: 방어진수질개선사업소 잡용수배관 교체공사 | D5: 전문 | E5: 잡용수배관(D15~150)) 교체 L=928m 둥 | F5: 240,000,000 | I5: =F5+G5+H5 -> 240,000,000 | K5: 하수관리과 | L5: 차명환 | M5: 052-229-3293
A6: 2026 | B6: 7 | C6: 울산수목원 진입로 및 탐방로 정비 사업 | D6: 토목 | E6: 진입로 및 탐방로 정비 1식 | F6: 157,900,000 | G6: 30,600,000 | I6: =SUM(F6:H6) -> 188,500,000 | K6: 수목원 | L6: 조민기 | M6: 052-229-8571
A7: 2026 | B7: 7 | C7: 관내 불량배수관 교체공사 | D7: 전문 | E7: 배수관 정비 D50~150mm, L=507m | F7: 239,580 | G7: 178,420 | I7: =F7+G7 -> 418,000 | J7: =F7 -> 239,580 | K7: 중부사업소 | L7: 서성대 | M7: 052-229-5671
A8: 2026 | B8: 7 | C8: 성안동 달빛로 일원 배수관로 부설공사 | D8: 전문 | E8: 배수관 부설 D100mm, L=767m | F8: 287,000 | G8: 173,000 | I8: =F8+G8 -> 460,000 | J8: =F8 -> 287,000 | K8: 중부사업소 | L8: 서성대 | M8: 052-229-5671
A9: 2026 | B9: 7 | C9: 연암동 산90-7번지 일원 배수관 및 가압장 설치공사 | D9: 토목 | E9: D=100~150mm, L=600 | F9: 172,010,000 | G9: 153,410,000 | I9: =SUM(F9:H9) -> 325,420,000 | J9: 325,420,000 | K9: 상수도사업본부 북부사업소 | L9: 홍나영 | M9: 052-229-5761
A10: 2026 | B10: 7 | C10: 웅촌면 검단마을 일원 배수관 부설공사 | D10: 토목 | E10: D=80~150㎜, L=1,850m | F10: 407,000,000 | G10: 236,800,000 | H10: 88,800,000 | I10: 732,600,000 | J10: =F10 -> 407,000,000 | K10: 울주사업소 | L10: 황다솜 | M10: 052-229-5795
A11: 2026 | B11: 7 | C11: 두서면 활천리 활천마을 일원 배수관 부설공사 | D11: 토목 | E11: D=80㎜, L=570m | F11: 72,910,000 | G11: 28,060,000 | H11: 24,600,000 | I11: 125,570,000 | J11: =F11 -> 72,910,000 | K11: 울주사업소 | L11: 황다솜 | M11: 052-229-5795
A12: 2026 | B12: 7 | C12: 삼남읍 가천리 소가천마을 일원 배수관 부설공사 | D12: 토목 | E12: D=100㎜, L=1,070m | F12: 235,400,000 | G12: 136,960,000 | H12: 51,360,000 | I12: 423,720,000 | J12: =F12 -> 235,400,000 | K12: 울주사업소 | L12: 정진협 | M12: 052-229-5793
A13: 2026 | B13: 7 | C13: 삼남읍 가천리 등고개마을 일원 배수관 부설공사 | D13: 토목 | E13: D=100㎜, L=4,000m | F13: 148,750,000 | G13: 109,340,000 | H13: 37,440,000 | I13: 295,530,000 | J13: =F13 -> 148,750,000 | K13: 울주사업소 | L13: 정진협 | M13: 052-229-5793
A14: 2026 | B14: 7 | C14: 온양읍 운화리 상대마을 일원 배수관 부설공사 | D14: 토목 | E14: D=100㎜, L=780m | F14: 880,000,000 | G14: 512,000,000 | H14: 192,000,000 | I14: 1,584,000,000 | J14: =F14 -> 880,000,000 | K14: 울주사업소 | L14: 박소현 | M14: 052-229-5791
A15: 2026 | B15: 9 | C15: 2026년 회야하수처리구역 하수관로 정비 및 콘크리트맨홀뚜껑 교체공사 (2026년 회야하수처리구역 하수관로 정비 및 부설공사) | D15: 전문 | E15: 오수관교체 (D300mm, L = 208.0m) 콘크리트 맨홀교체 262개소 | F15: 263,000,000 | G15: 102,300,000 | I15: =F15+G15+H15 -> 365,300,000 | K15: 하수관리과 | L15: 김지인 | M15: 052-229-3297
A16: 2026 | B16: 9 | C16: 2026년 삼호대숲 대나무 생육환경 개선사업(떼까마귀 서식지 잔여구역, 완충구역) | D16: 전문 | E16: 발주물량 | F16: 450,000,000 | I16: 450,000,000 | K16: 태화강국가정원과 | L16: 서미희 | M16: 052-229-7574
A17: 2026 | B17: 10 | C17: 연암동 산90-7번지 일원 배수관 및 가압장 설치공사(전기) | D17: 전기 | E17: 전기공사 1식 | F17: 10,839,000 | G17: 51,253,000 | H17: 715,000 | I17: =SUM(F17:H17) -> 62,807,000 | J17: 62,807,000 | K17: 상수도사업본부 북부사업소 | L17: 홍나영 | M17: 052-229-5761
A18: 2026 | C18: 2026년 상반기 광역시도(중구,동구,북구) 정비공사 | D18: 토목 | E18: 아스팔트 재포장 | F18: 1,100,000,000 | G18: 1,345,000,000 | H18: 403,000,000 | I18: 2,848,000,000 | J18: =I18 -> 2,848,000,000 | K18: 건설부 | L18: 김두희 | M18: 052-229-5841 | N18: 지역별 발주예정

Sheet 용역
A1: 발주년도 | B1: 발주월 | C1: 용역명 | D1: 업무유형 | E1: 용역구분 | F1: 사업내용(발주규모 등) | G1: 예산액 (단위: 원) | H1: 부서명 | I1: 담당자 | J1: 연락처 | K1: 비고
A2: 2026 | B2: 7 | C2: 테마가 있는 여행 기술 교육 운영 용역 | D2: 신규 | E2: 일반용역 | F2: 테마가 있는 여행 기술 교육 운영 1식 | G2: 7,000,000 | H2: 인재교육과 | I2: 김민수 | J2: 052-229-4975
A3: 2026 | B3: 7 | C3: 2026 고-래트로(Go-retro) 행사 대행 용역 | D3: 신규 | E3: 일반 | F3: 2026년 고-래트로 행사 운영 1식 | G3: 220,000,000 | H3: 관광과 | I3: 이슬우 | J3: 052-229-3882
A4: 2026 | B4: 7 | C4: 2026년 울산대곡박물관 제2차 특별기획전 전시 연출 용역 | D4: 신규 | E4: 일반용역 | F4: 전시장 설치, 영상 및 사인물 제작 | G4: 31,000,000 | H4: 울산박물관 | I4: 이하나 | J4: 052-229-4782
A5: 2026 | B5: 7 | C5: 2026년 울산대곡박물관 제2차 특별기획전 홍보물 제작 용역 | D5: 신규 | E5: 일반용역 | F5: 특별전 관련 홍보물 제작 | G5: 5,500,000 | H5: 울산박물관 | I5: 이하나 | J5: 052-229-4782
A6: 2026 | B6: 7 | C6: 2026년 울산박물관 소장유물 고화질 사진촬영 | D6: 신규 | E6: 일반용역 | F6: 소장유물 고화질 사진촬영(400점 이상) | G6: 20,000,000 | H6: 울산박물관 | I6: 구자창 | J6: 052-229-4743
A7: 2026 | B7: 7 | C7: 수장고 소독 및 소장유물 포장훈증 | D7: 신규 | E7: 일반용역 | F7: 소독 및 소장유물 포장훈증 | G7: 12,000,000 | H7: 울산박물관 | I7: 황선혜 | J7: 052-229-4741
A8: 2026 | B8: 7 | C8: 2026년 울산시립미술관 소장작품 보험 가입 | D8: 신규 | E8: 일반용역 | F8: 미술품 종합보험 1식 | G8: 17,000,000 | H8: 울산시립미술관 | I8: 김혜정 | J8: 052-229-8444
A9: 2026 | B9: 7 | C9: 2026년 7월 문화가 있는 날 행사 | D9: 신규 | E9: 일반용역 | F9: 방학을 맞아 명사 특강 1회 운영 | G9: 6,000,000 | H9: 울산도서관 자료정책과 | I9: 김정애 | J9: 052-229-6903
A10: 2026 | B10: 7 | C10: 2026년 울산 올해의 책 별빛 책마당 행사 | D10: 신규 | E10: 일반용역 | F10: 올해의 책 연계 가족 단위 야외 독서 행사 3일 운영 | G10: 15,000,000 | H10: 울산도서관 자료정책과 | I10: 김정애 | J10: 052-229-6903
A11: 2026 | B11: 7 | C11: 척과천 지방하천 정비사업 건설폐기물처리(폐콘,혼합폐기물) 용역 | D11: 신규 | E11: 기술용역 | F11: 운반 및 처리(폐콘 5,571ton, 건설폐재류 392ton), 잔토처리장 운반(폐콘 5,521ton) | G11: 448,000,000 | H11: 맑은물정책과 | I11: 권나영 | J11: 052-229-7555
A12: 2026 | B12: 7 | C12: 척과천 지방하천 정비사업 소각폐기물처리 용역 | D12: 신규 | E12: 기술용역 | F12: 임목폐기물 458ton | G12: 44,000,000 | H12: 맑은물정책과 | I12: 권나영 | J12: 052-229-7555
A13: 2026 | B13: 7 | C13: 척과천 지방하천 정비사업 건설폐기물처리(폐아스콘) 용역 | D13: 신규 | E13: 기술용역 | F13: 운반 및 처리(폐아스콘 471ton), 잔토처리장 운반(폐아스콘 472ton) | G13: 36,000,000 | H13: 맑은물정책과 | I13: 권나영 | J13: 052-229-7555
A14: 2026 | B14: 7 | C14: 회야강 지방하천 정비사업 건설폐기물처리(폐콘,혼합폐기물) 용역 | D14: 신규 | E14: 기술용역 | F14: 운반 및 처리(폐콘 3,556ton, 건설폐재류 2,633ton), 잔토처리장 운반(폐콘10,925ton) | G14: 705,600,000 | H14: 맑은물정책과 | I14: 권나영 | J14: 052-229-7555
A15: 2026 | B15: 7 | C15: 회야강 지방하천 정비사업 소각폐기물처리 용역 | D15: 신규 | E15: 기술용역 | F15: 임목폐기물 120ton | G15: 12,900,000 | H15: 맑은물정책과 | I15: 권나영 | J15: 052-229-7555
A16: 2026 | B16: 7 | C16: 회야강 지방하천 정비사업 건설폐기물처리(폐아스콘) 용역 | D16: 신규 | E16: 기술용역 | F16: 운반 및 처리(폐아스콘 925ton), 잔토처리장 운반(폐아스콘 926ton) | G16: 72,500,000 | H16: 맑은물정책과 | I16: 권나영 | J16: 052-229-7555
A17: 2026 | B17: 7 | C17: 2026년 시청사 정보통신설비 성능 점검 용역 | D17: 신규 | E17: 기술용역 | F17: 시청사 정보통신설비 14종 성능점검 | G17: 30,000,000 | H17: 정보화담당관 | I17: 김용민 | J17: 052-229-2382
A18: 2026 | B18: 7 | C18: 폐 정수약품 위탁처리 건의 | D18: 신규 | E18: 일반용역 | F18: 폐 정수약품 위탁처리 1식(70t 정도) | G18: 20,000,000 | H18: 회야정수사업소 | I18: 안진휘 | J18: 052-229-6475
A19: 2026 | B19: 7 | C19: 관내 불량배수관 교체공사 건설폐기물처리용역 | D19: 신규 | E19: 일반 | F19: 교체공사 폐기물처리 1식 | G19: 23,800,000 | H19: 중부사업소 | I19: 서성대 | J19: 052-229-5671
A20: 2026 | B20: 7 | C20: 성안동 달빛로 일원 배수관로 부설공사 건설폐기물처리용역 | D20: 신규 | E20: 일반 | F20: 부설공사 폐기물처리 1식 | G20: 26,300,000 | H20: 중부사업소 | I20: 서성대 | J20: 052-229-5671
A21: 2026 | B21: 7 | C21: 웅촌면 검단마을 일원 배수관 부설공사 건설폐기물처리용역 | D21: 신규 | E21: 기술용역 | F21: 건설폐기물 처리 1식 | G21: 29,600,000 | H21: 울주사업소 | I21: 황다솜 | J21: 052-229-5795
A22: 2026 | B22: 7 | C22: 웅촌면 검단마을 일원 배수관 부설공사 GIS DB구축용역 | D22: 신규 | E22: 기술용역 | F22: GIS DB 구축 1식 | G22: 59,200,000 | H22: 울주사업소 | I22: 황다솜 | J22: 052-229-5795
A23: 2026 | B23: 7 | C23: 두서면 활천리 활천마을 일원 배수관 부설공사 건설폐기물처리용역 | D23: 신규 | E23: 기술용역 | F23: 건설폐기물 처리 1식 | G23: 8,200,000 | H23: 울주사업소 | I23: 황다솜 | J23: 052-229-5795
A24: 2026 | B24: 7 | C24: 두서면 활천리 활천마을 일원 배수관 부설공사 GIS DB구축용역 | D24: 신규 | E24: 기술용역 | F24: GIS DB 구축 1식 | G24: 16,000,000 | H24: 울주사업소 | I24: 황다솜 | J24: 052-229-5795
A25: 2026 | B25: 7 | C25: 삼남읍 가천리 소가천마을 일원 배수관 부설공사 건설폐기물처리용역 | D25: 신규 | E25: 기술용역 | F25: 건설폐기물 처리 1식 | G25: 32,070,000 | H25: 울주사업소 | I25: 정진협 | J25: 052-229-5793
A26: 2026 | B26: 7 | C26: 삼남읍 가천리 소가천마을 일원 배수관 부설공사 GIS DB구축용역 | D26: 신규 | E26: 기술용역 | F26: GIS DB 구축 1식 | G26: 28,710,000 | H26: 울주사업소 | I26: 정진협 | J26: 052-229-5793
A27: 2026 | B27: 7 | C27: 삼남읍 가천리 등고개마을 일원 배수관 부설공사 건설폐기물처리용역 | D27: 신규 | E27: 기술용역 | F27: 건설폐기물 처리 1식 | G27: 24,800,000 | H27: 울주사업소 | I27: 정진협 | J27: 052-229-5793
A28: 2026 | B28: 7 | C28: 삼남읍 가천리 등고개마을 일원 배수관 부설공사 GIS DB구축용역 | D28: 신규 | E28: 기술용역 | F28: GIS DB 구축 1식 | G28: 23,300,000 | H28: 울주사업소 | I28: 정진협 | J28: 052-229-5793
A29: 2026 | B29: 7 | C29: 온양읍 운화리 상대마을 일원 배수관 부설공사 건설폐기물처리용역 | D29: 신규 | E29: 기술용역 | F29: 건설폐기물 처리 1식 | G29: 64,000,000 | H29: 울주사업소 | I29: 박소현 | J29: 052-229-5791
A30: 2026 | B30: 7 | C30: 온양읍 운화리 상대마을 일원 배수관 부설공사 GIS DB구축용역 | D30: 신규 | E30: 기술용역 | F30: GIS DB 구축 1식 | G30: 128,000,000 | H30: 울주사업소 | I30: 박소현 | J30: 052-229-5791
A31: 2026 | B31: 7 | C31: 울주군 관내 노후상수관로 관세척 용역 | D31: 신규 | E31: 기술용역 | F31: 관세척 1식 | G31: 250,000,000 | H31: 울주사업소 | I31: 박소현 | J31: 052-229-5791
A32: 2026 | B32: 7 | C32: 2026 태화강 국가정원 가을축제 행사 대행 용역 | D32: 신규 | E32: 일반용역 | F32: 개막식, 공연, 전시, 체험, 부대행사 | G32: 150,000,000 | H32: 태화강국가정원과 | I32: 윤병채 | J32: 052-229-7563
A33: 2026 | B33: 8 | C33: 전입자 맞춤형 교육 2기 교육 운영 용역 | D33: 신규 | E33: 일반용역 | F33: 전입자 맞춤형 교육 2기 교육 운영 용역 1식 | G33: 8,000,000 | H33: 인재교육과 | I33: 허송무 | J33: 052-229-4972
A34: 2026 | B34: 8 | C34: 지식UP콘서트 2기 교육 운영 용역 | D34: 신규 | E34: 일반용역 | F34: 지식UP콘서트 2기 교육 운영 용역 1식 | G34: 25,000,000 | H34: 인재교육과 | I34: 허송무 | J34: 052-229-4972
A35: 2026 | B35: 8 | C35: 행복한 미래설계 2기 교육 운영 용역 | D35: 신규 | E35: 일반용역 | F35: 행복한 미래설계 2기 교육 운영 1식 | G35: 50,000,000 | H35: 인재교육과 | I35: 김민수 | J35: 052-229-4975
A36: 2026 | B36: 8 | C36: 제3회 전화이용외국어회화 | D36: 신규 | E36: 일반용역 | F36: 전화외국어 과정 1식 | G36: 16,000,000 | H36: 인재교육과 | I36: 예연성 | J36: 052-229-4973
A37: 2026 | B37: 8 | C37: 간부공무원 리더십 코칭 2기 교육 운영 용역 | D37: 신규 | E37: 일반용역 | F37: 간부공무원 리더십 코칭 2기 교육 운영 용역 1식 | G37: 3,485,000 | H37: 인재교육과 | I37: 임혜미 | J37: 052-229-4964
A38: 2026 | B38: 8 | C38: 2026년 암각화박물관 특별기획전 전시도록 제작 용역 | D38: 신규 | E38: 일반용역 | F38: 도서제작 | G38: 22,000,000 | H38: 문화유산과 | I38: 최윤경 | J38: 052-229-4792
A39: 2026 | B39: 8 | C39: 2026년 울산대곡박물관 제2차 특별기획전 전시유물 사진 촬영 용역 | D39: 신규 | E39: 일반용역 | F39: 특별전 전시 유물 및 전시장 촬영 | G39: 3,000,000 | H39: 울산박물관 | I39: 이하나 | J39: 052-229-4782
A40: 2026 | B40: 8 | C40: 2026년 울산대곡박물관 제2차 특별기획전 전시유물 대여 및 운송 용역 | D40: 신규 | E40: 일반용역 | F40: 특별전 전시유물 대여 및 운송 | G40: 3,500,000 | H40: 울산박물관 | I40: 이하나 | J40: 052-229-4782
A41: 2026 | B41: 8 | C41: 울산대곡박물관 추석 문화행사 용역 | D41: 신규 | E41: 일반용역 | F41: 추석 연휴 문화행사 | G41: 10,000,000 | H41: 울산박물관 | I41: 윤근영 | J41: 052-229-4781
A42: 2026 | B42: 8 | C42: 2026년 울산박물관 제2차 특별전 전시 연출 용역 | D42: 신규 | E42: 일반용역 | F42: 전시장 설치, 영상 및 사인물 제작 | G42: 230,000,000 | H42: 울산박물관 | I42: 권소영 | J42: 052-229-4723
A43: 2026 | B43: 8 | C43: 울산박물관 진열장 수리 용역 | D43: 신규 | E43: 일반용역 | F43: 노후 진열장 수리 | G43: 60,000,000 | H43: 울산박물관 | I43: 이승우 | J43: 052-229-4724
A44: 2026 | B44: 8 | C44: 2026년 9월 독서의 달 행사 | D44: 신규 | E44: 일반용역 | F44: 9월 한달 강연 및 공연 운영 | G44: 10,000,000 | H44: 울산도서관 자료정책과 | I44: 김정애 | J44: 052-229-6903
A45: 2026 | B45: 8 | C45: 유량계 검교정 | D45: 신규 | E45: 전문용역 | F45: 유량계 교정검사 | G45: 120,000,000 | H45: 시설관리부 | I45: 김평주 | J45: 052-229-6688
A46: 2026 | B46: 8 | C46: 언양2가압장 노후 전기판넬 교체공사 감리용역 | D46: 신규 | E46: 기술용역 | F46: 전기감리 1식 | G46: 15,000,000 | H46: 시설관리부 | I46: 강희환 | J46: 052-229-6684
A47: 2026 | B47: 8 | C47: 회야댐 및 생태습지 내 부유물 및 쓰레기 수거용역 | D47: 신규 | E47: 일반용역 | F47: 부유쓰레기 수거 1식 | G47: 5,000,000 | H47: 회야정수사업소 | I47: 이상욱 | J47: 052-229-6412
A48: 2026 | B48: 8 | C48: 연암동 산90-7번지 일원 배수관 및 가압장 설치공사 재해예방 기술지도 용역 | D48: 신규 | E48: 기술용역 | F48: 재해예방 기술지도 1식 | G48: 1,320,000 | H48: 상수도사업본부 북부사업소 | I48: 홍나영 | J48: 052-229-5761
A49: 2026 | B49: 8 | C49: 연암동 산90-7번지 일원 배수관 및 가압장 설치공사 GIS DB구축 용역 | D49: 신규 | E49: 기술용역 | F49: GIS DB 구축 1식 | G49: 24,240,000 | H49: 상수도사업본부 북부사업소 | I49: 홍나영 | J49: 052-229-5761
A50: 2026 | B50: 8 | C50: 연암동 산90-7번지 일원 배수관 및 가압장 설치공사 건설폐기물 처리용역 | D50: 신규 | E50: 기술용역 | F50: 폐기물 운반 및 처리 718TON | G50: 44,030,000 | H50: 상수도사업본부 북부사업소 | I50: 홍나영 | J50: 052-229-5761
A51: 2026 | B51: 8 | C51: 2026년 빗살무늬미주메뚜기(2차) 농경지 공동방제 용역 | D51: 신규 | E51: 일반용역 | F51: 빗살무늬미주메뚜기(검역병해충) 농경지 공동방제 * 535필지 646,672㎡ | G51: 16,160,000 | H51: 농업기술센터 농업지원과 | I51: 윤보한 | J51: 052-229-5443
A52: 2026 | B52: 9 | C52: 저연차 공무원 울부심 UP 1기 교육 운영 용역 | D52: 신규 | E52: 일반용역 | F52: 울부심 UP 1기 교육 운영 용역 1식 | G52: 27,000,000 | H52: 인재교육과 | I52: 허송무 | J52: 052-229-4972
A53: 2026 | B53: 9 | C53: 외국어능력평가 | D53: 신규 | E53: 일반용역 | F53: 외국어능력평가 1식 | G53: 1,500,000 | H53: 회계과 | I53: 예연성 | J53: 052-229-4973
A54: 2026 | B54: 9 | C54: 제2기 고래도시 울산 탐방 과정 운영 용역 | D54: 신규 | E54: 일반용역 | F54: 고래도시 울산 탐방 과정 운영 1식 | G54: 20,000,000 | H54: 인재교육과 | I54: 박지향 | J54: 052-229-4963
A55: 2026 | B55: 9 | C55: 2026년 울산대곡박물관 제2차 특별기획전 도록 제작 용역 | D55: 신규 | E55: 일반용역 | F55: 특별전 전시도록 제작 | G55: 12,000,000 | H55: 울산박물관 | I55: 이하나 | J55: 052-229-4782
A56: 2026 | B56: 9 | C56: 울산대곡박물관 상설전시실 대여유물 반환 용역 | D56: 신규 | E56: 일반용역 | F56: 상설전시실 대여유물 반환 | G56: 4,000,000 | H56: 울산박물관 | I56: 윤근영 | J56: 052-229-4781
A57: 2026 | B57: 9 | C57: 2026년 회야하수처리구역 하수관로 정비 및 콘크리트맨홀뚜껑 교체공사 폐기물처리용역 | D57: 신규 | E57: 일반용역 | F57: 폐기물 처리 1식 | G57: 11,000,000 | H57: 하수관리과 | I57: 김지인 | J57: 052-229-3297
A58: 2026 | B58: 9 | C58: 2026년 회야하수처리구역 하수관로 정비 및 콘크리트맨홀뚜껑 교체공사 GIS DB구축 용역 | D58: 신규 | E58: 기술용역 | F58: GIS DB 구축 1식 | G58: 14,000,000 | H58: 하수관리과 | I58: 김지인 | J58: 052-229-3297
A59: 2026 | B59: 9 | C59: 시장실 홈페이지 개편 | D59: 신규 | E59: 일반용역 | F59: 시장실 홈페이지 콘텐츠 및 디자인 개편 | G59: 22,000,000 | H59: 정보화담당관 | I59: 이승희 | J59: 052-229-2352
A60: 2026 | B60: 9 | C60: 울산공업축제 고래수 홍보부스 운영 용역 | D60: 신규 | E60: 일반용역 | F60: 홍보부스 행사장 구성 및 인력 운영(3일) | G60: 9,330,000 | H60: 경영부 | I60: 김정희 | J60: 052-229-5515
A61: 2026 | B61: 9 | C61: 2026 삼호대숲 대나무 생육환경 개선사업 임목폐기물 처리 용역 | D61: 신규 | E61: 기술용역 | F61: 임목폐기물 처리 1식 | G61: 30,000,000 | H61: 태화강국가정원과 | I61: 서미희 | J61: 052-229-7574
A62: 2026 | B62: 9 | C62: 2026 삼호대숲 대나무 생육환경 개선사업 건설재해예방 기술지도 용역 | D62: 신규 | E62: 기술용역 | F62: 건설재해예방 기술지도 1식 | G62: 1,000,000 | H62: 태화강국가정원과 | I62: 서미희 | J62: 052-229-7574
A63: 2026 | B63: 9 | C63: 2026 하반기 태화강 국가정원 어린이 및 가족정원 참여프로그램 | D63: 신규 | E63: 일반용역 | F63: 체험프로그램 1식 | G63: 12,000,000 | H63: 태화강국가정원과 | I63: 김태교 | J63: 052-229-7566
A64: 2026 | B64: 10 | C64: 사진DB관리시스템 유지보수 용역 | D64: 신규 | E64: 기술 | F64: 사진DB관리시스템 | G64: 4,267,500 | H64: 문화예술과 | I64: 장형준 | J64: 052-229-6756 | K64: 분기별집행

Sheet 물품
A1: 발주년도 | B1: 발주월 | C1: 사업명 | D1: 세부품명번호 * | E1: 품 명 | F1: 수량 | G1: 수량단위 | H1: 구매예정금액(원) | I1: 부서명 | J1: 담당자 | K1: 연락처 | L1: 비고
A2: 2026 | B2: 7 | C2: 울산대곡박물관 상설전시실 사인물 제작 | D2: 5510159901 | E2: 기타인쇄물 | F2: 식 | G2: 1 | H2: 5,000,000 | I2: 울산박물관 | J2: 윤근영 | K2: 052-229-4781
A3: 2026 | B3: 7 | C3: 2026년 울산도서관 비도서 3차 구입 | D3: 5511150601 | E3: 전자책 및 오디오북 | F3: 500 | G3: 종 | H3: 70,000,000 | I3: 울산도서관 정보서비스과 | J3: 장원익 | K3: 052-229-6984
A4: 2026 | B4: 7 | C4: 정보통신설비 측정장비 구입 | D4: - | E4: 정보통신설비 측정장비 | F4: 1 | G4: 대 | H4: 7,000,000 | I4: 정보화담당관 | J4: 김용민 | K4: 052-229-2382
A5: 2026 | B5: 7 | C5: 관내 불량배수관 교체공사 | D5: 3011159701 | E5: 아스콘(WC-2) | F5: 461 | G5: Ton | H5: 67,259,900 | I5: 중부사업소 | J5: 서성대 | K5: 052-229-5671
A6: 2026 | B6: 7 | C6: 관내 불량배수관 교체공사 | D6: 3011159701 | E6: 아스콘(MC-1) | F6: 118 | G6: Ton | H6: 15,728,220 | I6: 중부사업소 | J6: 서성대 | K6: 052-229-5671
A7: 2026 | B7: 7 | C7: 관내 불량배수관 교체공사 | D7: 3011159701 | E7: 아스콘(BB-2) | F7: 370 | G7: Ton | H7: 44,207,600 | I7: 중부사업소 | J7: 서성대 | K7: 052-229-5671
A8: 2026 | B8: 7 | C8: 성안동 달빛로 일원 배수관로 부설공사 | D8: 3011159701 | E8: 아스콘(WC-2) | F8: 373 | G8: Ton | H8: 56,244,670 | I8: 중부사업소 | J8: 서성대 | K8: 052-229-5671
A9: 2026 | B9: 7 | C9: 성안동 달빛로 일원 배수관로 부설공사 | D9: 3011159701 | E9: 아스콘(BB-2) | F9: 449 | G9: Ton | H9: 55,689,470 | I9: 중부사업소 | J9: 서성대 | K9: 052-229-5671
A10: 2026 | B10: 7 | C10: 2026년 겨울초화 생산을 위한 플러그묘 구입 | D10: 24944316 | E10: 플러그묘 | F10: 1024 | G10: 트레이 | H10: 26,625,000 | I10: 도시농업과 | J10: 홍종옥 | K10: 052-229-5472
A11: 2026 | B11: 7 | C11: 2026 십리대숲 비배관리용 부숙퇴비 구입 | E11: 부숙퇴비 | F11: 1,000 | G11: 포 | H11: 8,000,000 | I11: 태화강국가정원과 | J11: 서미희 | K11: 052-229-7574
A12: 2026 | B12: 7 | C12: 2026 십리대숲 비배관리용 복합비료, 상토 구입 | E12: 복합비료, 상토 | F12: 1,000 | G12: 포 | H12: 21,000,000 | I12: 태화강국가정원과 | J12: 서미희 | K12: 052-229-7574
A13: 2026 | B13: 8 | C13: 암각화박물관 홍보물 제작 | D13: 5510151901 | E13: 리플릿 | F13: 5,000 | G13: 부 | H13: 10,000,000 | I13: 문화유산과 | J13: 성소현 | K13: 052-229-4791
A14: 2026 | B14: 8 | C14: 2026년 울산대곡박물관 학술자료집 제작 | D14: 5510159901 | E14: 기타인쇄물 | F14: 권 | G14: 300 | H14: 15,000,000 | I14: 울산박물관 | J14: 윤근영 | K14: 052-229-4781
A15: 2026 | B15: 8 | C15: 2026년 제4회 울산도서관 국내도서 구입 | D15: 5510151001 | E15: 서적 | F15: 2,900 | G15: 권 | H15: 49,000,000 | I15: 울산도서관 정보서비스과 | J15: 우지혜 | K15: 052-229-6983
A16: 2026 | B16: 8 | C16: 대기오염도검사 소모품 및 안전물품 구매 | D16: 4922158201 | E16: 마스크 외 | F16: 50 | G16: ea | H16: 10,000,000 | I16: 환경대기과 | J16: 백성우 | K16: 052-229-3203
A17: 2026 | B17: 9 | C17: 2026년 울산박물관 제2차 특별전 홍보물 제작 | E17: 현수막,포스터,리플릿 등 | F17: 1 | G17: 식 | H17: 10,000,000 | I17: 울산박물관 | J17: 권소영 | K17: 052-229-4723
A18: 2026 | B18: 9 | C18: 수목원 자생수종 초화류 구입 | E18: 기타초화 | F18: 300 | G18: 본 | H18: 20,000,000 | I18: 수목원 | J18: 조민기 | K18: 052-229-8571
